[Event "Early-Titled-Tuesday-Blitz-March-19-2024"]
[Site "Chess.com"]
[Date "2024.03.19"]
[Round "1"]
[White "JoliyRoger"]
[Black "kassablanca"]
[Result "1/2-1/2"]
[WhiteElo "2435"]
[BlackElo "2776"]
[TimeControl "180+1"]
[EndTime "8:08:34 PDT"]
[Termination "Game drawn by repetition"]

1. d4 {[%clk 0:03:00.9]} 1... d5 {[%clk 0:02:57.2]} 2. Nf3 {[%clk 0:03:00]} 2...
Nf6 {[%clk 0:02:56.4]} 3. c4 {[%clk 0:03:00.5]} 3... e6 {[%clk 0:02:42.2]} 4.
Nc3 {[%clk 0:02:59]} 4... a6 {[%clk 0:02:42.2]} 5. e3 {[%clk 0:02:50.1]} 5...
Nbd7 {[%clk 0:02:39.9]} 6. b3 {[%clk 0:02:47]} 6... c5 {[%clk 0:02:16.8]} 7.
cxd5 {[%clk 0:02:45.5]} 7... exd5 {[%clk 0:02:13.8]} 8. Bb2 {[%clk 0:02:43.9]}
8... b5 {[%clk 0:02:10]} 9. dxc5 {[%clk 0:02:42.6]} 9... Nxc5 {[%clk 0:02:10]}
10. Be2 {[%clk 0:02:41.2]} 10... Be7 {[%clk 0:02:09.3]} 11. O-O {[%clk
0:02:41.8]} 11... O-O {[%clk 0:02:09.6]} 12. Rc1 {[%clk 0:02:38.5]} 12... Bb7
{[%clk 0:02:02.5]} 13. Nd4 {[%clk 0:02:37]} 13... Re8 {[%clk 0:02:01.8]} 14. Bf3
{[%clk 0:02:32.5]} 14... Bf8 {[%clk 0:01:57.3]} 15. Nce2 {[%clk 0:02:31.1]}
15... Nce4 {[%clk 0:01:50.1]} 16. Ng3 {[%clk 0:02:31.6]} 16... Qb6 {[%clk
0:01:41.7]} 17. Bxe4 {[%clk 0:02:17.8]} 17... dxe4 {[%clk 0:01:26.3]} 18. Nh5
{[%clk 0:02:17.4]} 18... Nxh5 {[%clk 0:01:04.7]} 19. Qxh5 {[%clk 0:02:16.7]}
19... Qg6 {[%clk 0:01:02.2]} 20. Qxg6 {[%clk 0:02:03.9]} 20... hxg6 {[%clk
0:01:03.1]} 21. Rc7 {[%clk 0:02:03.4]} 21... Rab8 {[%clk 0:00:55.1]} 22. Rfc1
{[%clk 0:01:58.7]} 22... Rec8 {[%clk 0:00:44.7]} 23. Rxc8 {[%clk 0:01:46.2]}
23... Rxc8 {[%clk 0:00:44.6]} 24. Rxc8 {[%clk 0:01:46.7]} 24... Bxc8 {[%clk
0:00:45.5]} 25. a3 {[%clk 0:01:46.9]} 25... Bd7 {[%clk 0:00:43]} 26. b4 {[%clk
0:01:46.4]} 26... f6 {[%clk 0:00:42.4]} 27. h4 {[%clk 0:01:41.8]} 27... Kf7
{[%clk 0:00:42.3]} 28. Kf1 {[%clk 0:01:41.6]} 28... Ke7 {[%clk 0:00:41.8]} 29.
Ke1 {[%clk 0:01:41.3]} 29... Kd6 {[%clk 0:00:42.1]} 30. g3 {[%clk 0:01:40.1]}
30... Kd5 {[%clk 0:00:42.6]} 31. Kd2 {[%clk 0:01:40.7]} 31... Kc4 {[%clk
0:00:43.2]} 32. Kc2 {[%clk 0:01:40.9]} 32... Bd6 {[%clk 0:00:41.2]} 33. Nb3
{[%clk 0:01:35.8]} 33... Bc8 {[%clk 0:00:35.9]} 34. Nd2+ {[%clk 0:01:36.1]}
34... Kd5 {[%clk 0:00:35.9]} 35. Bd4 {[%clk 0:01:36.3]} 35... Bg4 {[%clk
0:00:33.5]} 36. Nb1 {[%clk 0:01:36.6]} 36... Kc6 {[%clk 0:00:30.8]} 37. Nd2
{[%clk 0:01:33.3]} 37... Kd5 {[%clk 0:00:29.4]} 38. Nb1 {[%clk 0:01:32.8]} 38...
Bf5 {[%clk 0:00:22.9]} 39. Kc3 {[%clk 0:01:24.9]} 39... Bh3 {[%clk 0:00:21.6]}
40. Nd2 {[%clk 0:01:20.7]} 40... Bg2 {[%clk 0:00:20.8]} 41. Nb3 {[%clk
0:01:21.2]} 41... Bf1 {[%clk 0:00:20.1]} 42. Bc5 {[%clk 0:01:20.1]} 42... Be5+
{[%clk 0:00:20]} 43. Bd4 {[%clk 0:01:20.5]} 43... Bc7 {[%clk 0:00:20.5]} 44. Nd2
{[%clk 0:01:09]} 44... Bh3 {[%clk 0:00:20.4]} 45. Nb3 {[%clk 0:01:05.1]} 45...
Bc8 {[%clk 0:00:21]} 46. Bc5 {[%clk 0:01:01.4]} 46... Ke6 {[%clk 0:00:20]} 47.
Nd4+ {[%clk 0:00:58.5]} 47... Kf7 {[%clk 0:00:19.4]} 48. Ne2 {[%clk 0:00:55.6]}
48... g5 {[%clk 0:00:19.8]} 49. hxg5 {[%clk 0:00:55.2]} 49... fxg5 {[%clk
0:00:19.9]} 50. Kd4 {[%clk 0:00:51.5]} 50... Bb7 {[%clk 0:00:19.2]} 51. Nc3
{[%clk 0:00:52]} 51... Ke6 {[%clk 0:00:19.5]} 52. Nxe4 {[%clk 0:00:49.6]} 52...
Be5+ {[%clk 0:00:20.1]} 53. Kd3 {[%clk 0:00:49.9]} 53... Kf5 {[%clk 0:00:20.7]}
54. Nd6+ {[%clk 0:00:39.4]} 54... Bxd6 {[%clk 0:00:20.8]} 55. Bxd6 {[%clk
0:00:40.3]} 55... g4 {[%clk 0:00:20.3]} 56. Kd4 {[%clk 0:00:37.8]} 56... g6
{[%clk 0:00:20.3]} 57. Bf4 {[%clk 0:00:34.5]} 57... Bg2 {[%clk 0:00:20]} 58. Be5
{[%clk 0:00:33.7]} 58... Bf1 {[%clk 0:00:20.2]} 59. Bb8 {[%clk 0:00:33.5]} 59...
Bg2 {[%clk 0:00:20.1]} 60. Bc7 {[%clk 0:00:33.6]} 60... Bf3 {[%clk 0:00:20.7]}
61. Bd8 {[%clk 0:00:34.2]} 61... Bg2 {[%clk 0:00:21]} 62. Be7 {[%clk 0:00:34.5]}
62... Bf3 {[%clk 0:00:21.7]} 63. Bd6 {[%clk 0:00:33.1]} 63... Bg2 {[%clk
0:00:22.2]} 64. Kd3 {[%clk 0:00:32.7]} 64... Bf3 {[%clk 0:00:22.8]} 65. Kc3
{[%clk 0:00:31.1]} 65... Ke4 {[%clk 0:00:22.7]} 66. Bb8 {[%clk 0:00:31]} 66...
Bd1 {[%clk 0:00:23.3]} 67. Kd2 {[%clk 0:00:30.7]} 67... Ba4 {[%clk 0:00:23.9]}
68. Ke2 {[%clk 0:00:25.8]} 68... Bb3 {[%clk 0:00:24.5]} 69. Kd2 {[%clk
0:00:23.5]} 69... Bc4 {[%clk 0:00:25.1]} 70. Bf4 {[%clk 0:00:23.5]} 70... Kf3
{[%clk 0:00:25.1]} 71. Kc3 {[%clk 0:00:24.1]} 71... Kxf2 {[%clk 0:00:24.5]} 72.
a4 {[%clk 0:00:24.7]} 72... Kf3 {[%clk 0:00:24.2]} 73. axb5 {[%clk 0:00:24.1]}
73... axb5 {[%clk 0:00:24.2]} 74. Kd4 {[%clk 0:00:24.3]} 74... g5 {[%clk
0:00:22.5]} 75. Bc7 {[%clk 0:00:22.6]} 75... Bb3 {[%clk 0:00:19.9]} 76. Bd6
{[%clk 0:00:23]} 76... Bc2 {[%clk 0:00:19.2]} 77. Bc7 {[%clk 0:00:22.1]} 77...
Bb1 {[%clk 0:00:19.3]} 78. Bd6 {[%clk 0:00:22.5]} 78... Bg6 {[%clk 0:00:19.2]}
79. Bc7 {[%clk 0:00:22.9]} 79... Bb1 {[%clk 0:00:19.3]} 80. Bd6 {[%clk
0:00:22.7]} 80... Bc2 {[%clk 0:00:19.1]} 81. Bc7 {[%clk 0:00:23]} 81... Bb1
{[%clk 0:00:19.6]} 1/2-1/2

[Event "Early-Titled-Tuesday-Blitz-March-19-2024"]
[Site "Chess.com"]
[Date "2024.03.19"]
[Round "1"]
[White "UK_23"]
[Black "Korchmar_Vasiliy"]
[Result "1-0"]
[WhiteElo "2364"]
[BlackElo "2678"]
[TimeControl "180+1"]
[EndTime "8:08:37 PDT"]
[Termination "UK_23 won on time"]

1. e4 {[%clk 0:02:59.5]} 1... c5 {[%clk 0:02:58.6]} 2. Nf3 {[%clk 0:02:58.9]}
2... d6 {[%clk 0:02:58.7]} 3. d4 {[%clk 0:02:57.7]} 3... cxd4 {[%clk 0:02:59.6]}
4. Qxd4 {[%clk 0:02:57.8]} 4... Nc6 {[%clk 0:02:59.4]} 5. Qe3 {[%clk 0:02:57.8]}
5... Nf6 {[%clk 0:02:57.5]} 6. Be2 {[%clk 0:02:55.9]} 6... g6 {[%clk 0:02:56.6]}
7. O-O {[%clk 0:02:56.2]} 7... Bg7 {[%clk 0:02:57.2]} 8. h3 {[%clk 0:02:55.9]}
8... O-O {[%clk 0:02:56.7]} 9. Rd1 {[%clk 0:02:56.6]} 9... Nd7 {[%clk
0:02:54.3]} 10. c4 {[%clk 0:02:55.2]} 10... Qb6 {[%clk 0:02:52.3]} 11. Qd2
{[%clk 0:02:50.4]} 11... Nc5 {[%clk 0:02:49.6]} 12. Nc3 {[%clk 0:02:43.9]} 12...
Bxc3 {[%clk 0:02:47.7]} 13. bxc3 {[%clk 0:02:38.7]} 13... Nxe4 {[%clk
0:02:48.2]} 14. Qe1 {[%clk 0:02:31.4]} 14... Re8 {[%clk 0:02:31.1]} 15. Bh6
{[%clk 0:02:26.4]} 15... Qa5 {[%clk 0:02:28.8]} 16. Rac1 {[%clk 0:02:14.8]}
16... Be6 {[%clk 0:02:20.7]} 17. Nd4 {[%clk 0:02:08.9]} 17... Nxd4 {[%clk
0:02:16.7]} 18. Rxd4 {[%clk 0:02:03.5]} 18... Nf6 {[%clk 0:02:13.6]} 19. Bf3
{[%clk 0:01:59.5]} 19... Qxa2 {[%clk 0:02:02.9]} 20. Bxb7 {[%clk 0:01:53.6]}
20... Rab8 {[%clk 0:02:03.2]} 21. Bd5 {[%clk 0:01:53.2]} 21... Bxd5 {[%clk
0:01:54.6]} 22. cxd5 {[%clk 0:01:54.1]} 22... e5 {[%clk 0:01:29.1]} 23. dxe6
{[%clk 0:01:46.3]} 23... Rxe6 {[%clk 0:01:28.5]} 24. Qd1 {[%clk 0:01:46.1]}
24... Ne4 {[%clk 0:01:03.4]} 25. Qf3 {[%clk 0:01:37.4]} 25... d5 {[%clk
0:00:42.8]} 26. Qf4 {[%clk 0:01:29.5]} 26... Rbe8 {[%clk 0:00:40.6]} 27. c4
{[%clk 0:01:24.1]} 27... g5 {[%clk 0:00:16.7]} 28. Bxg5 {[%clk 0:01:20.1]} 28...
dxc4 {[%clk 0:00:15]} 29. Rd7 {[%clk 0:01:10.2]} 29... Nxg5 {[%clk 0:00:05.6]}
30. Qxg5+ {[%clk 0:01:07.6]} 30... Rg6 {[%clk 0:00:06]} 31. Qf4 {[%clk
0:01:01.8]} 31... c3 {[%clk 0:00:06.2]} 32. Rxc3 {[%clk 0:00:43.7]} 32... a5
{[%clk 0:00:06.5]} 33. Rcc7 {[%clk 0:00:34.7]} 33... Rf8 {[%clk 0:00:06.9]} 34.
Ra7 {[%clk 0:00:32.8]} 34... Rg7 {[%clk 0:00:03.9]} 35. Kh2 {[%clk 0:00:30]}
35... Qe6 {[%clk 0:00:03.6]} 36. Re7 {[%clk 0:00:22.2]} 36... Qc6 {[%clk
0:00:03.9]} 37. g3 {[%clk 0:00:11.3]} 37... Qc2 {[%clk 0:00:03.9]} 38. Rxa5
{[%clk 0:00:10.6]} 38... Qc8 {[%clk 0:00:03]} 39. Rg5 {[%clk 0:00:10.8]} 39...
Qc3 {[%clk 0:00:03.1]} 40. Rxg7+ {[%clk 0:00:10.3]} 40... Qxg7 {[%clk 0:00:04]}
41. Re5 {[%clk 0:00:10.8]} 41... h6 {[%clk 0:00:04.2]} 42. Re4 {[%clk
0:00:08.8]} 42... Kh7 {[%clk 0:00:04.1]} 43. Qf3 {[%clk 0:00:09.3]} 43... Rg8
{[%clk 0:00:02.1]} 44. Rg4 {[%clk 0:00:10]} 44... Qf8 {[%clk 0:00:02.3]} 45.
Qf5+ {[%clk 0:00:10.1]} 45... Kh8 {[%clk 0:00:02.1]} 46. Qf6+ {[%clk 0:00:10.2]}
46... Kh7 {[%clk 0:00:02.2]} 47. Qf5+ {[%clk 0:00:10.1]} 47... Kh8 {[%clk
0:00:02]} 48. Rxg8+ {[%clk 0:00:10.3]} 48... Qxg8 {[%clk 0:00:02]} 49. Qf6+
{[%clk 0:00:10.7]} 49... Kh7 {[%clk 0:00:02.2]} 50. h4 {[%clk 0:00:10.9]} 50...
Qf8 {[%clk 0:00:01.6]} 51. Qf5+ {[%clk 0:00:11.1]} 51... Kg7 {[%clk 0:00:01.9]}
52. Kg2 {[%clk 0:00:11.4]} 52... Qe8 {[%clk 0:00:02.3]} 53. Qg4+ {[%clk
0:00:11.8]} 53... Kh7 {[%clk 0:00:02.6]} 54. Qf4 {[%clk 0:00:12.7]} 54... Kg7
{[%clk 0:00:02.8]} 55. Qf3 {[%clk 0:00:13.6]} 55... Kg8 {[%clk 0:00:03.1]} 56.
g4 {[%clk 0:00:13.9]} 56... Qe6 {[%clk 0:00:03]} 57. Kg3 {[%clk 0:00:14.3]}
57... Qe5+ {[%clk 0:00:03.2]} 58. Qf4 {[%clk 0:00:14.8]} 58... Qc3+ {[%clk
0:00:03.6]} 59. f3 {[%clk 0:00:15.4]} 59... Kg7 {[%clk 0:00:03]} 60. g5 {[%clk
0:00:15.2]} 60... Qe1+ {[%clk 0:00:03]} 61. Kg2 {[%clk 0:00:14]} 61... Qe2+
{[%clk 0:00:03.1]} 62. Kg3 {[%clk 0:00:12.9]} 62... Qe1+ {[%clk 0:00:03.5]} 63.
Kh2 {[%clk 0:00:12]} 63... Qe2+ {[%clk 0:00:03]} 64. Kh3 {[%clk 0:00:12.3]}
64... Qf1+ {[%clk 0:00:02.5]} 65. Kg4 {[%clk 0:00:11.9]} 65... Qg2+ {[%clk
0:00:02.6]} 66. Kh5 {[%clk 0:00:12.4]} 66... Kf8 {[%clk 0:00:01.7]} 67. Qf6
{[%clk 0:00:10.8]} 67... hxg5 {[%clk 0:00:01.6]} 68. Qxg5 {[%clk 0:00:10.4]}
68... Qxf3+ {[%clk 0:00:02]} 69. Qg4 {[%clk 0:00:10.8]} 1-0

[Event "Early-Titled-Tuesday-Blitz-March-19-2024"]
[Site "Chess.com"]
[Date "2024.03.19"]
[Round "1"]
[White "diamonds13"]
[Black "profedechess93"]
[Result "1-0"]
[WhiteElo "2336"]
[BlackElo "2652"]
[TimeControl "180+1"]
[EndTime "8:08:37 PDT"]
[Termination "diamonds13 won by resignation"]

1. d4 {[%clk 0:02:56]} 1... d5 {[%clk 0:02:59.8]} 2. c4 {[%clk 0:02:55.7]} 2...
c6 {[%clk 0:02:59.6]} 3. cxd5 {[%clk 0:02:55.2]} 3... cxd5 {[%clk 0:03:00.5]} 4.
Bf4 {[%clk 0:02:53.6]} 4... Nf6 {[%clk 0:03:01]} 5. Nc3 {[%clk 0:02:52.8]} 5...
Nc6 {[%clk 0:03:01.2]} 6. e3 {[%clk 0:02:53.1]} 6... a6 {[%clk 0:03:01.8]} 7.
Bd3 {[%clk 0:02:52.1]} 7... e6 {[%clk 0:03:02.4]} 8. h3 {[%clk 0:02:49.6]} 8...
Bd6 {[%clk 0:03:02.8]} 9. Nge2 {[%clk 0:02:49.4]} 9... b5 {[%clk 0:03:01]} 10.
a4 {[%clk 0:02:44.8]} 10... b4 {[%clk 0:03:00.3]} 11. Nb1 {[%clk 0:02:44.8]}
11... Bb7 {[%clk 0:03:00]} 12. Nd2 {[%clk 0:02:38.6]} 12... e5 {[%clk
0:02:59.4]} 13. dxe5 {[%clk 0:02:33.5]} 13... Nxe5 {[%clk 0:03:00.3]} 14. Bxe5
{[%clk 0:02:30]} 14... Bxe5 {[%clk 0:03:00.1]} 15. Qb1 {[%clk 0:02:22.8]} 15...
d4 {[%clk 0:02:33.2]} 16. e4 {[%clk 0:02:21.9]} 16... Nh5 {[%clk 0:02:24.8]} 17.
g3 {[%clk 0:02:18.6]} 17... O-O {[%clk 0:02:10.9]} 18. f4 {[%clk 0:02:16.1]}
18... Nxg3 {[%clk 0:02:06.8]} 19. Nxg3 {[%clk 0:02:07.8]} 19... Bxf4 {[%clk
0:02:05.4]} 20. Ngf1 {[%clk 0:02:02.4]} 20... Qh4+ {[%clk 0:02:02.8]} 21. Kd1
{[%clk 0:02:02.4]} 21... f5 {[%clk 0:01:47.2]} 22. Qa2+ {[%clk 0:01:57]} 22...
Kh8 {[%clk 0:01:46]} 23. Qc4 {[%clk 0:01:49.9]} 23... fxe4 {[%clk 0:01:24.9]}
24. Bxe4 {[%clk 0:01:49.8]} 24... Bxe4 {[%clk 0:00:32.2]} 25. Nxe4 {[%clk
0:01:49.6]} 25... Rae8 {[%clk 0:00:17.5]} 26. Qd3 {[%clk 0:01:40]} 26... Qh5+
{[%clk 0:00:12.1]} 27. Kc2 {[%clk 0:01:38.2]} 27... Qg6 {[%clk 0:00:12.2]} 28.
Re1 {[%clk 0:01:34]} 28... Qc6+ {[%clk 0:00:12.1]} 29. Kb1 {[%clk 0:01:33]}
29... Qxa4 {[%clk 0:00:12.7]} 30. Nfd2 {[%clk 0:01:27]} 30... b3 {[%clk
0:00:08.3]} 31. Qxb3 {[%clk 0:01:21.4]} 31... Qc6 {[%clk 0:00:08.5]} 32. Qd3
{[%clk 0:01:20.5]} 32... Rb8 {[%clk 0:00:07.9]} 33. Rc1 {[%clk 0:01:18.8]} 33...
Qb7 {[%clk 0:00:08.4]} 34. Rc2 {[%clk 0:01:18.8]} 34... Rfd8 {[%clk 0:00:07.9]}
35. Nc5 {[%clk 0:01:18.7]} 35... Qxh1+ {[%clk 0:00:07.5]} 36. Rc1 {[%clk
0:01:16.7]} 36... Qd5 {[%clk 0:00:08.4]} 37. Nce4 {[%clk 0:01:07.2]} 37... Bxd2
{[%clk 0:00:08.8]} 38. Nxd2 {[%clk 0:01:06.5]} 38... Rdc8 {[%clk 0:00:09.5]} 39.
Rg1 {[%clk 0:01:02.7]} 39... a5 {[%clk 0:00:09]} 40. Qg3 {[%clk 0:00:57.6]}
40... g6 {[%clk 0:00:08.5]} 41. Re1 {[%clk 0:00:48.8]} 41... Qf5+ {[%clk
0:00:07.5]} 42. Ne4 {[%clk 0:00:41.5]} 42... a4 {[%clk 0:00:08.4]} 43. Ka1
{[%clk 0:00:30]} 43... Rb3 {[%clk 0:00:07.6]} 44. Qd6 {[%clk 0:00:26.4]} 44...
Rd3 {[%clk 0:00:06.8]} 45. Qa6 {[%clk 0:00:22.5]} 45... a3 {[%clk 0:00:06.1]}
46. Qxd3 {[%clk 0:00:21.5]} 46... axb2+ {[%clk 0:00:06]} 47. Kb1 {[%clk
0:00:20.4]} 47... Rd8 {[%clk 0:00:06.1]} 48. Rf1 {[%clk 0:00:17.3]} 48... Qa5
{[%clk 0:00:06.3]} 49. Nf6 {[%clk 0:00:14.7]} 49... Qa1+ {[%clk 0:00:05.2]} 50.
Kc2 {[%clk 0:00:15]} 50... Rc8+ {[%clk 0:00:03.4]} 51. Kd2 {[%clk 0:00:14.6]}
51... Qa5+ {[%clk 0:00:03.2]} 52. Ke2 {[%clk 0:00:14.3]} 52... Qe5+ {[%clk
0:00:03.8]} 53. Kd2 {[%clk 0:00:14.2]} 53... Qa5+ {[%clk 0:00:02.9]} 54. Ke2
{[%clk 0:00:14.4]} 54... Qe5+ {[%clk 0:00:03.2]} 55. Ne4 {[%clk 0:00:12.9]}
55... Rc1 {[%clk 0:00:02.3]} 56. Rf8+ {[%clk 0:00:11.6]} 56... Kg7 {[%clk
0:00:02.3]} 57. Rb8 {[%clk 0:00:12.3]} 57... Qh2+ {[%clk 0:00:02.5]} 58. Nf2
{[%clk 0:00:11.7]} 58... b1=Q {[%clk 0:00:02.5]} 59. Rxb1 {[%clk 0:00:10.5]}
59... Rc7 {[%clk 0:00:01.9]} 60. Qxd4+ {[%clk 0:00:11]} 60... Kh6 {[%clk
0:00:02.8]} 61. Rb3 {[%clk 0:00:11]} 61... Re7+ {[%clk 0:00:03.2]} 62. Re3
{[%clk 0:00:11.6]} 62... Rf7 {[%clk 0:00:03.7]} 63. Qe4 {[%clk 0:00:11.7]} 63...
Qh1 {[%clk 0:00:04.3]} 64. Rf3 {[%clk 0:00:11.1]} 64... Re7 {[%clk 0:00:04.4]}
65. Qxe7 {[%clk 0:00:11]} 65... Qh2 {[%clk 0:00:05.1]} 66. Qh4+ {[%clk
0:00:11.6]} 1-0

[Event "Early-Titled-Tuesday-Blitz-March-19-2024"]
[Site "Chess.com"]
[Date "2024.03.19"]
[Round "1"]
[White "ketster"]
[Black "Rud_Makarian"]
[Result "0-1"]
[WhiteElo "2542"]
[BlackElo "2983"]
[TimeControl "180+1"]
[EndTime "8:08:40 PDT"]
[Termination "Rud_Makarian won on time"]

1. d4 {[%clk 0:03:00.9]} 1... Nf6 {[%clk 0:03:00.3]} 2. c4 {[%clk 0:03:00.8]}
2... e6 {[%clk 0:03:00.8]} 3. Nc3 {[%clk 0:03:00.2]} 3... d5 {[%clk 0:03:01.5]}
4. Nf3 {[%clk 0:02:59.8]} 4... dxc4 {[%clk 0:02:59.4]} 5. e4 {[%clk 0:02:59.9]}
5... b5 {[%clk 0:02:59.5]} 6. e5 {[%clk 0:03:00.2]} 6... Nd5 {[%clk 0:03:00.2]}
7. Nxb5 {[%clk 0:03:00.4]} 7... Nb6 {[%clk 0:03:00.9]} 8. Nc3 {[%clk 0:02:58.7]}
8... Nc6 {[%clk 0:03:01.1]} 9. h4 {[%clk 0:02:58.6]} 9... Bb7 {[%clk 0:02:58.5]}
10. h5 {[%clk 0:02:58.1]} 10... Nb4 {[%clk 0:02:38.6]} 11. Be3 {[%clk
0:02:40.1]} 11... Qd7 {[%clk 0:02:33.1]} 12. Nd2 {[%clk 0:02:19.8]} 12... Nd3+
{[%clk 0:02:30.6]} 13. Bxd3 {[%clk 0:02:19.4]} 13... cxd3 {[%clk 0:02:31.5]} 14.
Nde4 {[%clk 0:02:19.5]} 14... Nc4 {[%clk 0:02:15.5]} 15. Qxd3 {[%clk 0:02:07.7]}
15... Nxe5 {[%clk 0:02:10.4]} 16. Qe2 {[%clk 0:02:01.1]} 16... Nc6 {[%clk
0:01:49]} 17. h6 {[%clk 0:02:00.6]} 17... O-O-O {[%clk 0:01:42.8]} 18. Rd1
{[%clk 0:01:47.6]} 18... f5 {[%clk 0:01:15.6]} 19. Nc5 {[%clk 0:01:30.5]} 19...
Bxc5 {[%clk 0:01:15.5]} 20. dxc5 {[%clk 0:01:31.4]} 20... Qf7 {[%clk 0:01:14.7]}
21. O-O {[%clk 0:01:21.8]} 21... gxh6 {[%clk 0:00:59.3]} 22. f3 {[%clk
0:01:07.5]} 22... f4 {[%clk 0:00:56.1]} 23. Bf2 {[%clk 0:01:03.9]} 23... Rdg8
{[%clk 0:00:51.4]} 24. Ne4 {[%clk 0:00:53.2]} 24... Ne5 {[%clk 0:00:28.6]} 25.
Bd4 {[%clk 0:00:51.4]} 25... Qf5 {[%clk 0:00:18]} 26. Rb1 {[%clk 0:00:35.8]}
26... Rg6 {[%clk 0:00:14.3]} 27. Rbc1 {[%clk 0:00:28.7]} 27... Rhg8 {[%clk
0:00:13.5]} 28. Bxe5 {[%clk 0:00:29]} 28... Qxe5 {[%clk 0:00:12.9]} 29. Nd6+
{[%clk 0:00:28.1]} 29... cxd6 {[%clk 0:00:04.2]} 30. cxd6+ {[%clk 0:00:28.4]}
30... Kb8 {[%clk 0:00:04.2]} 31. Qxe5 {[%clk 0:00:28.4]} 31... Rxg2+ {[%clk
0:00:05]} 32. Kh1 {[%clk 0:00:29]} 32... R2g5 {[%clk 0:00:05.9]} 33. Qxf4 {[%clk
0:00:21.4]} 33... Rh5+ {[%clk 0:00:06.2]} 34. Qh2 {[%clk 0:00:21.8]} 34... Rxh2+
{[%clk 0:00:07]} 35. Kxh2 {[%clk 0:00:22.7]} 35... Rd8 {[%clk 0:00:06.4]} 36.
Rcd1 {[%clk 0:00:07.5]} 36... Bd5 {[%clk 0:00:06.2]} 37. Rg1 {[%clk 0:00:08]}
37... Rxd6 {[%clk 0:00:05.8]} 38. Rg7 {[%clk 0:00:08.4]} 38... Rc6 {[%clk
0:00:04.1]} 39. Rd2 {[%clk 0:00:05.9]} 39... a5 {[%clk 0:00:03]} 40. Rxh7 {[%clk
0:00:06.2]} 40... Rc7 {[%clk 0:00:02.9]} 41. Rxc7 {[%clk 0:00:04.2]} 41... Kxc7
{[%clk 0:00:03.8]} 42. f4 {[%clk 0:00:04.9]} 42... Bxa2 {[%clk 0:00:03.7]} 43.
Kg3 {[%clk 0:00:05]} 43... Bd5 {[%clk 0:00:04.1]} 44. Kg4 {[%clk 0:00:05.1]}
44... Kd6 {[%clk 0:00:04.7]} 45. Kh5 {[%clk 0:00:05.1]} 45... Kc5 {[%clk
0:00:04.9]} 46. Kxh6 {[%clk 0:00:05.5]} 46... Be4 {[%clk 0:00:05.4]} 47. Kg5
{[%clk 0:00:05.6]} 47... Bf5 {[%clk 0:00:06]} 48. Kf6 {[%clk 0:00:06.1]} 48...
Kb4 {[%clk 0:00:06.5]} 49. Ke5 {[%clk 0:00:06.5]} 49... a4 {[%clk 0:00:07.1]}
50. Kd4 {[%clk 0:00:06.7]} 50... Kb3 {[%clk 0:00:07.6]} 51. Rh2 {[%clk 0:00:06]}
51... Bc2 {[%clk 0:00:07.8]} 52. Ke5 {[%clk 0:00:04.2]} 52... Kxb2 {[%clk
0:00:06.7]} 53. Kxe6 {[%clk 0:00:04]} 53... a3 {[%clk 0:00:07.4]} 54. Rh8 {[%clk
0:00:02.5]} 54... a2 {[%clk 0:00:07.6]} 55. Rb8+ {[%clk 0:00:02.8]} 55... Bb3+
{[%clk 0:00:07.8]} 56. Rxb3+ {[%clk 0:00:01.9]} 56... Kxb3 {[%clk 0:00:08.7]}
57. f5 {[%clk 0:00:02.6]} 57... a1=Q {[%clk 0:00:09.6]} 58. f6 {[%clk
0:00:03.5]} 58... Qa8 {[%clk 0:00:09.1]} 59. Kf7 {[%clk 0:00:02.3]} 59... Qb7+
{[%clk 0:00:09.3]} 60. Kg6 {[%clk 0:00:02.6]} 60... Qc8 {[%clk 0:00:08.6]} 61.
Kg7 {[%clk 0:00:02.2]} 61... Qg4+ {[%clk 0:00:08.9]} 62. Kf8 {[%clk 0:00:02.6]}
62... Qc8+ {[%clk 0:00:05.4]} 63. Kg7 {[%clk 0:00:02.9]} 63... Qc3 {[%clk
0:00:06]} 64. Kg6 {[%clk 0:00:02.6]} 64... Qe5 {[%clk 0:00:05.2]} 65. f7 {[%clk
0:00:02.2]} 65... Qh8 {[%clk 0:00:05.9]} 66. Kf5 {[%clk 0:00:02]} 66... Qf8
{[%clk 0:00:06.8]} 67. Ke6 {[%clk 0:00:02.9]} 67... Kc4 {[%clk 0:00:07.1]} 0-1